fUSD/lending_fUSD_20260405
["ID","MTS","AMOUNT","RATE_DAILY","PERIOD"]
[419762434,1775361045931,-1000.0,0.00014247,2]
[419762435,1775361045941,-1000.0,0.00014247,2]
[419762436,1775361045951,-1000.0,0.00014247,2]
[419762437,1775361045960,-1000.0,0.00014247,2]
[419762438,1775361045970,-1000.0,0.00014247,2]
[419762439,1775361045979,-1000.0,0.00014247,2]
[419762440,1775361045988,-189.74788311,0.00014247,2]
[419762441,1775361045998,-1000.0,0.00014247,2]
[419762442,1775361046007,-1000.0,0.00014247,2]
[419762443,1775361046016,-1000.0,0.00014247,2]
[419762444,1775361046026,-1000.0,0.00014247,2]
[419762445,1775361046039,-1000.0,0.00014247,2]
[419762446,1775361046054,-500.33264559,0.00014247,2]
[419762447,1775361046063,-1000.0,0.00014247,2]
[419762448,1775361046072,-1006.60866792,0.00014247,2]
[419762449,1775361046082,-1000.0,0.00014247,2]
[419762450,1775361046092,-1000.0,0.00014247,2]
[419762451,1775361046102,-1000.0,0.00014247,2]
[419762452,1775361046111,-1000.0,0.00014247,2]
[419762453,1775361046122,-1000.0,0.00014247,2]
[419762454,1775361046131,-1000.0,0.00014247,2]
[419762455,1775361046141,-1000.0,0.00014247,2]
[419762456,1775361046151,-237.25,0.00014368,2]
[419762457,1775361046162,-10360.38894539,0.0001437,2]
[419762458,1775361046173,-150.0,0.000144,2]
[419762459,1775361046186,-150.0,0.000144,2]
[419762460,1775361046197,-150.0,0.000144,2]
[419762461,1775361046206,-150.0,0.000144,2]
[419762462,1775361046216,-150.0,0.000144,2]
[419762463,1775361046225,-150.0,0.000144,2]
[419762464,1775361046235,-150.0,0.000144,2]
[419762465,1775361046244,-150.0,0.000144,2]
[419762466,1775361046254,-150.0,0.000144,2]
[419762467,1775361046263,-150.0,0.000144,2]
[419762468,1775361046272,-150.0,0.000144,2]
[419762469,1775361046283,-150.0,0.000144,2]
[419762470,1775361046296,-150.0,0.000144,2]
[419762471,1775361046306,-150.0,0.000144,2]
[419762472,1775361046317,-150.0,0.00014433,2]
[419762473,1775361046327,-228.6,0.00014436,2]
[419762474,1775361046337,-150.0,0.00014438,2]
[419762475,1775361046347,-150.0,0.00014446,2]
[419762476,1775361046358,-150.0,0.0001445,2]
[419762477,1775361046367,-150.0,0.00014452,2]
[419762478,1775361046377,-150.0,0.00014457,2]
[419762479,1775361046387,-150.0,0.00014465,2]
[419762480,1775361046396,-150.0,0.00014476,2]
[419762481,1775361046406,-785.67,0.00014478,2]
[419762482,1775361046415,-150.0,0.00014489,2]
[419762483,1775361046424,-150.0,0.00014491,2]
[419762484,1775361046434,-150.0,0.00014498,2]
[419762485,1775361046444,-150.0,0.000145,2]
[419762486,1775361046454,-150.0,0.00014503,2]
[419762487,1775361046464,-7738.97,0.00014504,2]
[419762488,1775361046474,-150.99,0.00014504,2]
[419762489,1775361046485,-299.99,0.00014504,2]
[419762490,1775361046494,-150.99,0.00014504,2]
[419762491,1775361046503,-3359.23,0.00014504,2]
[419762492,1775361046513,-500.0,0.00014513,2]
[419762493,1775361046522,-762.51968471,0.00014513,2]
[419762494,1775361046531,-500.0,0.00014513,2]
[419762495,1775361046541,-500.0,0.00014513,2]
[419762496,1775361046551,-420.84825679,0.00014513,2]
[419762498,1775361046561,-227.692277,0.00014513,2]
[419762499,1775361046570,-150.0,0.00014514,2]
[419762500,1775361046579,-150.0,0.00014514,2]
[419762501,1775361046589,-480.34,0.00014517,2]
[419762502,1775361046599,-500.0,0.00014519,2]
[419762503,1775361046608,-150.0,0.00014523,2]
[419762504,1775361046618,-150.0,0.00014531,2]
[419762505,1775361046627,-1600.0,0.00014536,2]
[419762506,1775361046637,-1600.0,0.00014536,2]
[419762507,1775361046647,-1600.0,0.00014536,2]
[419762508,1775361046656,-1600.0,0.00014536,2]
[419762509,1775361046666,-1600.0,0.00014536,2]
[419762510,1775361046675,-1600.0,0.00014536,2]
[419762511,1775361046685,-1600.0,0.00014536,2]
[419762512,1775361046694,-1600.0,0.00014536,2]
[419762513,1775361046704,-1600.0,0.00014536,2]
[419762514,1775361046713,-1279.0,0.00014536,2]
[419762515,1775361046723,-150.0,0.00014537,2]
[419762516,1775361046735,-1000.0,0.00014548,2]
[419762517,1775361046744,-150.0,0.0001455,2]
[419762518,1775361046755,-150.0,0.00014552,2]
[419762519,1775361046764,-150.0,0.00014555,2]
[419762521,1775361046773,-150.0,0.00014563,2]
[419762523,1775361046783,-1000.0,0.00014565,2]
[419762525,1775361046792,-1000.0,0.00014565,2]
[419762527,1775361046801,-3240.0,0.0001457,2]
[419762529,1775361046811,-150.0,0.00014571,2]
[419762531,1775361046820,-150.0,0.00014578,2]
[419762534,1775361046830,-150.0,0.00014578,2]
[419762536,1775361046839,-150.0,0.00014583,2]
[419762538,1775361046849,-150.0,0.0001459,2]
[419762540,1775361046858,-1000.0,0.00014592,2]
[419762541,1775361046869,-180.00096908,0.00014592,2]
[419762542,1775361046879,-150.0,0.00014596,2]
[419762543,1775361046889,-160.9517,0.000146,2]
[419762544,1775361046899,-150.0,0.000146,2]
[419762545,1775361046908,-400.0,0.00014601,2]
[419762546,1775361046918,-400.0,0.00014601,2]
[419762547,1775361046928,-400.0,0.00014601,2]
[419762548,1775361046938,-400.0,0.00014601,2]
[419762549,1775361046950,-400.0,0.00014601,2]
[419762550,1775361046959,-400.0,0.00014601,2]
[419762551,1775361046970,-400.0,0.00014601,2]
[419762552,1775361047292,-400.0,0.00014601,2]
[419762553,1775361047302,-400.0,0.00014601,2]
[419762554,1775361047313,-374.0,0.00014601,2]
[419762555,1775361047324,-150.0,0.00014606,2]
[419762556,1775361047334,-150.0,0.00014629,2]
[419762557,1775361047345,-150.0,0.00014629,2]
[419762558,1775361047355,-150.0,0.00014629,2]
[419762559,1775361047365,-150.0,0.00014629,2]
[419762560,1775361047375,-501.0,0.00014631,3]
[419762561,1775361047385,-1000.0,0.00014637,2]
[419762562,1775361047395,-1000.0,0.00014637,2]
[419762563,1775361047405,-150.0,0.00014646,2]
[419762564,1775361047415,-150.0,0.0001465,2]
[419762565,1775361047426,-480.34,0.00014656,2]
[419762566,1775361047436,-150.0,0.00014658,2]
[419762567,1775361047447,-150.0,0.00014661,2]
[419762568,1775361047457,-150.0,0.00014667,2]
[419762569,1775361047466,-150.0,0.00014667,2]
[419762570,1775361047477,-150.0,0.00014674,2]
[419762571,1775361047487,-150.0,0.00014686,2]
[419762572,1775361047497,-150.0,0.00014694,2]
[419762573,1775361047507,-160.9517,0.000147,2]
[419762574,1775361047516,-150.0,0.000147,2]
[419762575,1775361047526,-150.0,0.00014705,2]
[419762576,1775361047536,-765.37,0.00014705,2]
[419762577,1775361047547,-765.37,0.00014705,2]
[419762578,1775361047556,-765.37,0.00014705,2]
[419762579,1775361047566,-765.37,0.00014705,2]
[419762580,1775361047576,-765.50278756,0.00014705,2]
[419762581,1775361047585,-500.0,0.00014706,2]
[419762582,1775361047595,-500.0,0.00014706,2]
[419762583,1775361047604,-889.96,0.00014706,2]
[419762584,1775361047614,-500.0,0.00014706,2]
[419762585,1775361047625,-150.0,0.0001471,2]
[419762586,1775361047635,-150.0,0.0001472,2]
[419762587,1775361047646,-150.0,0.00014727,2]
[419762588,1775361047656,-10360.38894539,0.00014734,2]
[419762589,1775361047666,-237.25,0.0001474,2]
[419762590,1775361047678,-150.0,0.00014743,2]
[419762591,1775361047688,-150.0,0.00014743,2]
[419762592,1775361047698,-250.0,0.00014749,2]
[419762593,1775361047707,-150.0,0.0001475,2]
[419762594,1775361047717,-902.17,0.00014752,2]
[419762595,1775361047727,-150.0,0.00014756,2]
[419762596,1775361047736,-150.0,0.00014756,2]
[419762597,1775361047746,-150.0,0.00014759,2]
[419762598,1775361047756,-150.0,0.00014761,2]
[419762599,1775361047766,-150.0,0.00014766,2]
[419762600,1775361047776,-150.0,0.00014769,2]
[419762601,1775361047786,-150.0,0.00014781,2]
[419762602,1775361047796,-228.6,0.00014784,2]
[419762603,1775361047806,-480.37,0.00014789,2]
[419762604,1775361047815,-150.0,0.00014792,2]
[419762605,1775361047825,-1000.0,0.00014795,2]
[419762606,1775361047834,-1500.0,0.00014795,2]
[419762607,1775361047844,-1500.0,0.00014795,2]
[419762608,1775361047853,-1500.0,0.00014795,2]
[419762609,1775361047863,-1000.0,0.00014795,2]
[419762610,1775361047872,-502.36401508,0.00014795,2]
[419762611,1775361047882,-500.0,0.00014795,2]
[419762612,1775361047892,-1500.0,0.00014795,2]
[419762613,1775361047902,-1500.0,0.00014795,2]
[419762614,1775361047911,-1500.0,0.00014795,2]
[419762615,1775361047921,-1500.0,0.00014795,2]
[419762616,1775361047931,-1500.0,0.00014795,2]
[419762617,1775361047941,-1500.0,0.00014795,2]
[419762618,1775361047951,-1100.33490613,0.00014795,2]
[419762619,1775361047961,-1500.0,0.00014795,2]
[419762620,1775361047982,-1500.0,0.00014795,2]
[419762621,1775361047993,-1500.0,0.00014795,2]
[419762622,1775361048004,-1530.75,0.00014797,2]
[419762623,1775361048014,-150.0,0.000148,2]
[419762624,1775361048024,-150.0,0.000148,2]
[419762625,1775361048036,-150.0,0.00014811,2]
[419762626,1775361048046,-150.0,0.00014813,2]
[419762627,1775361048057,-150.0,0.00014819,2]
[419762628,1775361048068,-150.0,0.00014824,2]
[419762629,1775361048078,-150.0,0.00014844,2]
[419762630,1775361048088,-150.0,0.0001485,2]
[419762631,1775361048100,-150.0,0.00014857,2]
[419762632,1775361048109,-150.0,0.00014857,2]
[419762633,1775361048120,-150.0,0.00014857,2]
[419762634,1775361048129,-150.0,0.00014857,2]
[419762635,1775361048140,-150.0,0.00014865,2]
[419762636,1775361048150,-150.0,0.0001489,2]
[419762637,1775361048160,-150.0,0.00014892,2]
[419762638,1775361048171,-150.0,0.00014895,2]
[419762639,1775361048182,-150.0,0.000149,2]
[419762640,1775361048192,-150.0,0.00014903,2]
[419762641,1775361048202,-150.0,0.00014914,2]
[419762642,1775361048212,-150.0,0.00014916,2]
[419762643,1775361048223,-150.0,0.00014922,2]
[419762644,1775361048233,-150.0,0.00014933,2]
[419762645,1775361048242,-150.0,0.00014933,2]
[419762646,1775361048252,-150.0,0.00014933,2]
[419762647,1775361048262,-150.0,0.00014933,2]
[419762648,1775361048272,-150.0,0.00014949,2]
[419762649,1775361048282,-150.0,0.0001495,2]
[419762650,1775361048292,-150.0,0.00014955,2]
[419762651,1775361048302,-160.0,0.00014963,2]
[419762652,1775361048312,-150.0,0.00014968,2]
[419762653,1775361048322,-150.0,0.00014971,2]
[419762654,1775361048331,-150.0,0.00014971,2]
[419762655,1775361048341,-150.0,0.00014988,2]
[419762656,1775361048353,-150.0,0.00014994,2]
[419762657,1775361048363,-300.0,0.00015,2]
[419762658,1775361048373,-150.0,0.00015,2]
[419762659,1775361048384,-150.0,0.00015,2]
[419762660,1775361048394,-824.43,0.00015004,2]
[419762661,1775361048404,-824.43,0.00015004,2]
[419762662,1775361048414,-824.43,0.00015004,2]
[419762663,1775361048424,-824.43,0.00015004,2]
[419762664,1775361048435,-824.53889533,0.00015004,2]
[419762665,1775361048446,-150.0,0.0001501,2]
[419762666,1775361048456,-150.0,0.00015015,2]
[419762667,1775361048466,-150.0,0.00015019,2]
[419762668,1775361048476,-150.0,0.0001502,2]
[419762669,1775361048487,-150.0,0.00015022,2]
[419762670,1775361048498,-150.0,0.00015029,2]
[419762671,1775361048510,-150.0,0.0001504,2]
[419762672,1775361048520,-150.0,0.00015048,2]
[419762673,1775361048529,-150.0,0.0001505,2]
[419762674,1775361048539,-150.0,0.00015053,2]
[419762675,1775361048550,-586.14,0.00015063,2]
[419762676,1775361048560,-1045.81,0.00015063,2]
[419762677,1775361048570,-800.0,0.00015068,2]
[419762678,1775361048580,-150.0,0.00015071,2]
[419762679,1775361048591,-150.0,0.00015086,2]
[419762680,1775361048602,-150.0,0.00015086,2]
[419762681,1775361048612,-150.0,0.00015086,2]
[419762682,1775361048623,-150.0,0.00015086,2]
[419762683,1775361048634,-1500.0,0.00015096,2]
[419762684,1775361048645,-10360.38894539,0.00015099,2]
[419762685,1775361048656,-150.0,0.000151,2]
[419762686,1775361048667,-150.0,0.00015111,2]
[419762687,1775361048677,-150.0,0.00015111,2]
[419762688,1775361048686,-1500.0,0.00015113,2]
[419762689,1775361048696,-1500.0,0.00015113,2]
[419762690,1775361048706,-150.0,0.00015118,2]
[419762691,1775361048715,-150.0,0.00015123,2]
[419762692,1775361048725,-150.0,0.00015124,2]
[419762693,1775361048735,-150.0,0.00015131,2]
[419762694,1775361048744,-150.0,0.00015138,2]
[419762695,1775361048754,-1500.0,0.0001514,2]
[419762696,1775361048763,-150.0,0.00015143,2]
[419762697,1775361048773,-150.0,0.0001515,2]
[419762698,1775361048783,-197.7,0.0001515,2]
[419762699,1775361048792,-150.0,0.00015151,2]
[419762700,1775361048802,-150.0,0.00015162,2]
[419762701,1775361048811,-150.0,0.00015174,2]
[419762702,1775361048823,-190.5,0.00015175,2]
[419762703,1775361048852,-150.0,0.00015177,2]
[419762704,1775361048862,-150.0,0.00015184,2]
[419762705,1775361048872,-1500.0,0.00015185,2]
[419762706,1775361048881,-1500.0,0.00015185,2]
[419762707,1775361048892,-197.69375685,0.00015188,2]
[419762708,1775361048902,-209.40437685,0.00015199,2]
[419762709,1775361048911,-1428.38747117,0.00015199,2]
[419762710,1775361048923,-200.0,0.00015199,2]
[419762711,1775361048932,-721.12765535,0.00015199,2]
[419762712,1775361048941,-500.0,0.00015199,2]
[419762713,1775361048950,-500.0,0.00015199,2]
[419762714,1775361048960,-500.0,0.00015199,2]
[419762715,1775361048970,-500.0,0.00015199,2]
[419762716,1775361048980,-500.0,0.00015199,2]
[419762717,1775361048989,-151.0,0.00015199,2]
[419762718,1775361048999,-500.0,0.00015199,2]
[419762719,1775361049010,-500.0,0.00015199,2]
[419762720,1775361049021,-151.0,0.00015199,2]
[419762721,1775361049031,-500.0,0.00015199,2]
[419762722,1775361049041,-151.0,0.00015199,2]
[419762723,1775361049050,-500.0,0.00015199,2]
[419762724,1775361049061,-250.0,0.00015199,2]
[419762725,1775361049072,-500.0,0.00015199,2]
[419762726,1775361049081,-250.0,0.00015199,2]
[419762727,1775361049090,-500.0,0.00015199,2]
[419762728,1775361049099,-250.0,0.00015199,2]
[419762729,1775361049109,-154.76515316,0.00015199,2]
[419762730,1775361049119,-500.0,0.00015199,2]
[419762731,1775361049128,-250.0,0.00015199,2]
[419762732,1775361049137,-250.0,0.00015199,2]
[419762733,1775361049147,-250.0,0.00015199,2]
[419762734,1775361049156,-250.0,0.00015199,2]
[419762735,1775361049166,-250.0,0.00015199,2]
[419762736,1775361049175,-250.0,0.00015199,2]
[419762737,1775361049185,-250.0,0.00015199,2]
[419762738,1775361049197,-209.40437685,0.00015199,2]
[419762739,1775361049206,-500.0,0.00015199,2]
[419762740,1775361049215,-500.0,0.00015199,2]
[419762741,1775361049225,-500.0,0.00015199,2]
[419762742,1775361049234,-500.0,0.00015199,2]
[419762743,1775361049245,-200.0,0.00015199,2]
[419762744,1775361049255,-500.0,0.00015199,2]
[419762745,1775361049265,-500.0,0.00015199,2]
[419762746,1775361049275,-500.0,0.00015199,2]
[419762747,1775361049284,-693.3919763,0.00015199,2]
[419762748,1775361049294,-151.0,0.00015199,2]
[419762749,1775361049303,-500.0,0.00015199,2]
[419762750,1775361049312,-500.0,0.00015199,2]
[419762751,1775361049322,-250.0,0.00015199,2]
[419762752,1775361049332,-500.0,0.00015199,2]
[419762753,1775361049343,-500.0,0.00015199,2]
[419762754,1775361049354,-174.61919141,0.00015199,2]
[419762755,1775361049364,-743.50770149,0.00015199,2]
[419762756,1775361049374,-157.03985341,0.00015199,2]
[419762757,1775361049384,-279.9045709,0.00015199,2]
[419762758,1775361049393,-170.0,0.00015199,2]
[419762759,1775361049403,-170.0,0.00015199,2]
[419762760,1775361049412,-170.0,0.00015199,2]
[419762761,1775361049422,-170.0,0.00015199,2]
[419762762,1775361049431,-170.0,0.00015199,2]
[419762763,1775361049442,-170.0,0.00015199,2]
[419762764,1775361049452,-170.0,0.00015199,2]
[419762765,1775361049463,-170.0,0.00015199,2]
[419762766,1775361049477,-170.0,0.00015199,2]
[419762767,1775361049487,-170.0,0.00015199,2]
[419762768,1775361049497,-170.0,0.00015199,2]
[419762769,1775361049507,-500.0,0.00015199,2]
[419762770,1775361049517,-500.0,0.00015199,2]
[419762771,1775361049527,-500.0,0.00015199,2]
[419762772,1775361049538,-500.0,0.00015199,2]
[419762773,1775361049549,-500.0,0.00015199,2]
[419762774,1775361049559,-418.53577656,0.000152,2]
[419762775,1775361049570,-150.0,0.000152,2]
[419762776,1775361049581,-150.0,0.000152,2]
[419762777,1775361049591,-150.0,0.000152,2]
[419762778,1775361049601,-150.0,0.000152,2]
[419762779,1775361049611,-150.0,0.000152,2]
[419762780,1775361049621,-150.0,0.000152,2]
[419762781,1775361049631,-10000.0,0.00015205,2]
[419762782,1775361049640,-150.0,0.00015216,2]
[419762783,1775361049652,-190.5,0.00015218,2]
[419762784,1775361049664,-150.0,0.00015223,2]
[419762785,1775361049675,-500.0,0.00015224,2]
[419762786,1775361049684,-500.0,0.00015224,2]
[419762787,1775361049694,-150.0,0.00015226,2]
[419762788,1775361049704,-150.0,0.00015238,2]
[419762789,1775361049714,-150.0,0.00015249,2]
[419762790,1775361049726,-150.0,0.0001525,2]
[419762791,1775361049737,-500.0,0.00015254,2]
[419762792,1775361049747,-151.0,0.00015254,2]
[419762793,1775361049948,-150.0,0.00015257,2]
[419762794,1775361049957,-150.0,0.00015262,2]
[419762795,1775361049967,-150.0,0.00015269,2]
[419762796,1775361049978,-150.0,0.00015276,2]
[419762797,1775361049988,-150.0,0.00015277,2]
[419762798,1775361049997,-150.0,0.00015282,2]
[419762799,1775361050007,-150.0,0.00015289,2]
[419762800,1775361050016,-150.0,0.00015289,2]
[419762801,1775361050027,-150.0,0.000153,2]
[419762802,1775361050035,-500.0,0.00015309,2]
[419762803,1775361050044,-151.0,0.00015309,2]
[419762804,1775361050053,-150.0,0.00015314,2]
[419762805,1775361050062,-150.0,0.00015314,2]
[419762806,1775361050071,-150.0,0.00015314,2]
[419762807,1775361050080,-150.0,0.00015314,2]
[419762808,1775361050091,-150.0,0.00015329,2]
[419762809,1775361050101,-736.0,0.00015335,2]
[419762810,1775361050110,-350.0,0.0001534,2]
[419762811,1775361050119,-950.63286364,0.00015342,2]
[419762812,1775361050129,-2000.0,0.00015342,2]
[419762813,1775361050139,-1000.0,0.00015342,2]
[419762814,1775361050149,-823.00574972,0.00015342,2]
[419762815,1775361050158,-753.85680119,0.00015342,2]
[419762816,1775361050167,-2000.0,0.00015342,2]
[419762817,1775361050176,-193.24301277,0.00015342,2]
[419762818,1775361050186,-762.32183267,0.00015342,2]
[419762819,1775361050195,-1000.0,0.00015342,2]
[419762820,1775361050204,-347.07116371,0.00015342,2]
[419762821,1775361050214,-2000.0,0.00015342,2]
[419762822,1775361050223,-2000.0,0.00015342,2]
[419762823,1775361050232,-150.0,0.00015347,2]
[419762824,1775361050242,-150.0,0.0001535,2]
[419762825,1775361050252,-150.0,0.00015352,2]
[419762826,1775361050262,-150.0,0.0001536,2]
[419762827,1775361050271,-500.0,0.00015364,2]
[419762828,1775361050280,-151.0,0.00015364,2]
[419762829,1775361050290,-150.0,0.00015371,2]
[419762830,1775361050300,-150.0,0.00015378,2]
[419762831,1775361050309,-150.0,0.0001538,2]
[419762832,1775361050318,-1600.0,0.0001538,2]
[419762833,1775361050327,-150.0,0.00015381,2]
[419762834,1775361050336,-150.0,0.00015385,2]
[419762835,1775361050345,-150.0,0.0001539,2]
[419762836,1775361050354,-150.0,0.000154,2]
[419762837,1775361050363,-150.0,0.00015406,2]
[419762838,1775361050372,-150.0,0.00015412,2]
[419762839,1775361050381,-500.0,0.00015419,2]
[419762840,1775361050390,-151.0,0.00015419,2]
[419762841,1775361050401,-150.0,0.00015429,2]
[419762842,1775361050411,-150.0,0.00015429,2]
[419762843,1775361050420,-150.0,0.00015432,2]
[419762844,1775361050429,-150.0,0.00015445,2]
[419762845,1775361050438,-150.0,0.0001545,2]
[419762846,1775361050447,-150.0,0.00015451,2]
[419762847,1775361050456,-150.0,0.00015467,2]
[419762848,1775361050465,-150.0,0.00015467,2]
[419762849,1775361050474,-150.0,0.00015467,2]
[419762850,1775361050487,-150.0,0.00015467,2]
[419762851,1775361050496,-422.60958238,0.00015474,2]
[419762852,1775361050506,-500.0,0.00015474,2]
[419762853,1775361050516,-889.96,0.00015474,2]
[419762854,1775361050525,-500.0,0.00015474,2]
[419762855,1775361050536,-500.0,0.00015474,2]
[419762856,1775361050545,-151.0,0.00015474,2]
[419762857,1775361050555,-150.0,0.00015478,2]
[419762858,1775361050564,-150.0,0.00015484,2]
[419762859,1775361050573,-150.0,0.00015486,2]
[419762860,1775361050583,-823.0,0.00015491,2]
[419762861,1775361050592,-150.0,0.00015497,2]
[419762862,1775361050605,-150.0,0.000155,2]
[419762863,1775361050616,-150.0,0.00015505,2]
[419762864,1775361050627,-150.0,0.00015508,2]
[419762865,1775361050636,-150.0,0.0001551,2]
[419762866,1775361050646,-586.14,0.00015518,2]
[419762867,1775361050655,-1045.81,0.00015518,2]
[419762868,1775361050664,-500.0,0.00015529,2]
[419762869,1775361050673,-151.0,0.00015529,2]
[419762870,1775361050682,-150.0,0.00015535,2]
[419762871,1775361050692,-150.0,0.00015543,2]
[419762872,1775361050701,-150.0,0.00015543,2]
[419762873,1775361050710,-150.0,0.00015543,2]
[419762874,1775361050719,-150.0,0.00015543,2]
[419762875,1775361050728,-150.0,0.0001555,2]
[419762876,1775361050738,-150.0,0.00015556,2]
[419762877,1775361050747,-3292.0,0.00015571,2]
[419762878,1775361050756,-150.0,0.00015576,2]
[419762879,1775361050765,-150.0,0.00015581,2]
[419762880,1775361050774,-500.0,0.00015584,2]
[419762881,1775361050783,-151.0,0.00015584,2]
[419762882,1775361050792,-150.0,0.00015587,2]
[419762883,1775361050801,-150.0,0.00015589,2]
[419762884,1775361050810,-5888.0,0.00015599,2]
[419762885,1775361050819,-150.0,0.000156,2]
[419762886,1775361050829,-150.0,0.000156,2]
[419762887,1775361050847,-150.0,0.00015608,2]
[419762888,1775361050856,-5888.0,0.0001561,2]
[419762889,1775361050865,-500.0,0.00015616,2]
[419762890,1775361050874,-150.0,0.00015619,2]
[419762891,1775361050884,-150.0,0.00015631,2]
[419762892,1775361050893,-150.0,0.00015634,2]
[419762893,1775361050902,-5888.0,0.00015637,2]
[419762894,1775361050911,-150.0,0.00015639,2]
[419762895,1775361050920,-500.0,0.00015639,2]
[419762896,1775361050935,-151.0,0.00015639,2]
[419762897,1775361050947,-150.0,0.00015641,2]
[419762898,1775361050956,-2000.0,0.00015644,2]
[419762899,1775361050966,-150.0,0.00015644,2]
[419762900,1775361050976,-150.0,0.00015644,2]
[419762901,1775361050985,-150.0,0.0001565,2]
[419762902,1775361050994,-150.0,0.00015657,2]
[419762903,1775361051003,-150.0,0.00015657,2]
[419762904,1775361051014,-204.40114749,0.00015661,2]
[419762905,1775361051023,-150.0,0.00015673,2]
[419762906,1775361051032,-150.0,0.0001568,2]
[419762907,1775361051042,-350.0,0.00015682,2]
[419762908,1775361051051,-2000.0,0.00015688,2]
[419762909,1775361051061,-150.0,0.0001569,2]
[419762910,1775361051071,-500.0,0.00015694,2]
[419762911,1775361051080,-151.0,0.00015694,2]
[419762912,1775361051089,-150.0,0.00015695,2]
[419762913,1775361051099,-150.0,0.000157,2]
[419762914,1775361051109,-150.0,0.00015706,2]
[419762915,1775361051119,-1312.56465436,0.00015711,2]
[419762916,1775361051128,-150.0,0.00015714,2]
[419762917,1775361051138,-150.0,0.00015726,2]
[419762918,1775361051147,-2000.0,0.00015733,2]
[419762919,1775361051156,-689.37318328,0.00015733,2]
[419762920,1775361051166,-150.0,0.00015733,2]
[419762921,1775361051175,-150.0,0.00015733,2]
[419762922,1775361051186,-150.0,0.00015739,2]
[419762923,1775361051196,-150.0,0.00015742,2]
[419762924,1775361051207,-1481.23780761,0.00015747,2]
[419762925,1775361051217,-200.0,0.00015747,2]
[419762926,1775361051227,-200.0,0.00015747,2]
[419762927,1775361051237,-719.04747942,0.00015747,2]
[419762928,1775361051250,-181.08010149,0.00015747,2]
[419762929,1775361051259,-771.01748645,0.00015747,2]
[419762930,1775361051268,-349.4458247,0.00015747,2]
[419762931,1775361051277,-500.0,0.00015749,2]
[419762932,1775361051287,-151.0,0.00015749,2]
[419762933,1775361051297,-150.0,0.0001575,2]
[419762934,1775361051306,-150.0,0.00015754,2]
[419762935,1775361051315,-350.0,0.00015758,2]
[419762936,1775361051324,-350.0,0.0001576,2]
[419762937,1775361051333,-150.0,0.00015771,2]
[419762938,1775361051342,-150.0,0.00015771,2]
[419762939,1775361051351,-150.0,0.00015771,2]
[419762940,1775361051360,-150.0,0.00015771,2]
[419762941,1775361051370,-150.0,0.00015794,2]
[419762942,1775361051379,-150.0,0.000158,2]
[419762943,1775361051388,-1400.0,0.000158,5]
[419762944,1775361051398,-150.0,0.00015804,2]
[419762945,1775361051407,-150.0,0.0001581,2]